[Event "XLIX Sevilla Open 2024"]
[Site "?"]
[Date "2024.01.15"]
[Round "4.1"]
[White "Stella, Andrea"]
[Black "Stremavicius, Titas"]
[Result "1/2-1/2"]
[ECO "D35"]
[WhiteElo "2401"]
[BlackElo "2543"]
[Annotator "TA"]
[PlyCount "82"]
[EventDate "2024.01.12"]
[EventType "swiss"]
[SourceTitle "playchess.com"]
[Source "ChessBase"]
[SourceQuality "1"]
[TimeControl "5400+30"]

{[%evp 12,82,25,37,37,43,27,28,25,11,53,43,49,62,85,79,89,95,127,120,119,119,123,120,145,145,133,129,148,116,150,96,112,80,93,48,66,68,62,37,70,35,28,30,103,33,71,33,33,33,196,102,122,122,255,250,223,0,0,0,0,0,0,0,0,0,0,0,8,0,0,0,0]} 1. d4 {[%emt 0:03:33]} d5 {[%emt 0:00:09]} 2. c4 {[%emt 0:00:05]} e6 {[%emt 0:00:05]} 3. Nc3 {[%emt 0:00:05]} Nf6 {[%emt 0:00:07]} 4. cxd5 {[%emt 0:00:06]} exd5 {[%emt 0:00:09]} 5. Bg5 {[%emt 0:00:05][%cal Bc1g5,Bg5h4,Bh4g3][%mdl 32]} Bb4 {[%emt 0:02:10]} 6. e3 {[%emt 0:00:07]} h6 {[%emt 0:00:10]} 7. Bh4 {[%emt 0:00:04]} g5 {[%emt 0:00:09] D35: Queen's Gambit Declined: Exchange Variation.} 8. Bg3 {[%emt 0:00:04]} Ne4 {[%emt 0:00:08]} 9. Qc2 {[%emt 0:00:03]} h5 {[%emt 0:02:39] White has an edge.} 10. f3 {[%emt 0:01:48]} Bxc3+ {[%emt 0:04:57]} 11. bxc3 {[%emt 0:00:18]} Nxg3 {[%emt 0:00:07]} 12. hxg3 {[%emt 0:00:03][%cal Bh2g3,Bg3g4][%mdl 32]} Qd6 {[%emt 0:04:18] [#]} 13. g4 $1 {[%emt 0:00:05]} h4 {[%emt 0:02:00]} 14. Nh3 {[%emt 0:00:04] [#]} Nc6 $146 {[%emt 0:03:08]} ({Predecessor:} 14... Qe7 15. Kf2 O-O 16. Bd3 c5 17. Rae1 f6 18. e4 c4 19. Bf1 Qc7 20. e5 Kg7 {1-0 Ghazizadeh,A (1865)-Vagoohian,R (1770) IRI-ch (Women) 2014 (2)}) 15. Nxg5 {[%emt 0:04:16]} Qe7 {[%emt 0:11:11]} 16. Nh3 {[%emt 0:00:56]} Qxe3+ {[%emt 0:00:04]} 17. Qe2 {[%emt 0:00:06]} Qe7 {[%emt 0:00:44]} 18. Qxe7+ {[%emt 0:01:14]} Kxe7 {[%emt 0:00:09]} 19. Nf4 {[%emt 0:01:35]} Kd6 {[%emt 0:14:43]} 20. Bd3 {[%emt 0:02:34]} Bd7 {[%emt 0:03:06]} 21. Kf2 {[%emt 0:13:34]} (21. Kd2 $142) 21... Rab8 {[%emt 0:02:35]} 22. Rab1 {[%emt 0:08:32]} Nd8 {[%emt 0:04:02]} 23. Rh2 {[%emt 0:05:54] White is much more active.} b5 {[%emt 0:00:24]} 24. g5 {[%emt 0:00:31]} Ne6 {[%emt 0:02:57]} 25. Nxe6 {[%emt 0:00:37]} Kxe6 {[%emt 0:00:30]} 26. Rbh1 {[%emt 0:15:25]} (26. Ke3 $5) 26... b4 $1 {[%emt 0:01:41]} 27. c4 {[%emt 0:00:15]} a5 {[%emt 0:11:43]} (27... b3 $11 {remains equal.} 28. axb3 (28. Rxh4 Rxh4 29. Rxh4 b2 $15) 28... Rxb3 29. cxd5+ Ke7) 28. c5 {[%emt 0:14:31]} (28. Re1+ $16 Kd6 29. c5+ Kc6 30. Bc2) 28... Ke7 {[%emt 0:02:17]} 29. Rxh4 {[%emt 0:00:16]} (29. Bc2 $5 {[%cal Rh2h4]}) 29... Rxh4 {[%emt 0:00:32]} 30. Rxh4 $16 {[%emt 0:00:02][%mdl 4096] Endgame Black must now prevent g6. KRB-KRB} a4 $2 {[%emt 0:00:16] [#]} (30... b3 $14 31. axb3 Rxb3) 31. Rh1 {[%emt 0:03:00]} (31. Rh7 $1 $18) 31... b3 {[%emt 0:01:18]} 32. a3 {[%emt 0:11:35]} ({But not} 32. Re1+ $6 Kf8 $14) 32... b2 {[%emt 0:04:20]} (32... Bb5 $16 33. Bb1 Rf8) 33. Bc2 $18 {[%emt 0:03:00]} Bb5 {[%emt 0:01:17]} 34. Ke3 $2 {[%emt 0:00:56]} ({White should try} 34. f4 $18) 34... Bc4 $11 {[%emt 0:01:20] The position is equal.} 35. Kd2 {[%emt 0:00:15][%cal Oc2b1]} Ba2 {[%emt 0:01:00] Prevents Bb1} 36. Bb1 {[%emt 0:00:13]} (36. Bxa4 $2 {perishes.} b1=Q 37. Rxb1 Rxb1 $19) 36... Bxb1 {[%emt 0:00:12]} 37. Rxb1 {[%emt 0:00:05]} Rb3 {[%emt 0:00:20]} 38. Kc2 {[%emt 0:00:11]} Rxa3 {[%emt 0:00:43]} 39. Rxb2 {[%emt 0:00:03]} Ke6 {[%emt 0:00:23]} 40. Rb7 {[%emt 0:01:36]} Kd7 {[%emt 0:02:31]} 41. Ra7 {[%emt 0:02:27]} Ra2+ {[%emt 0:00:32] Weighted Error Value: White=0.24 (precise) /Black=0.24 (precise)} 1/2-1/2

[Event "XLIX Sevilla Open 2024"]
[Site "?"]
[Date "2024.01.15"]
[Round "4.2"]
[White "Petkov, Momchil"]
[Black "Sabuk, Piotr"]
[Result "1-0"]
[ECO "C70"]
[WhiteElo "2498"]
[BlackElo "2387"]
[Annotator "TA"]
[PlyCount "73"]
[EventDate "2024.01.12"]
[EventType "swiss"]
[SourceTitle "playchess.com"]
[Source "ChessBase"]
[SourceQuality "1"]
[TimeControl "5400+30"]

{[%evp 9,73,29,36,33,31,30,45,33,24,20,5,0,0,0,0,0,3,16,18,11,14,14,10,10,0,6,29,0,0,0,87,89,58,0,0,0,0,0,29,29,39,11,137,138,130,143,140,118,118,110,105,96,666,659,648,627,624,595,595,581,562,559,1027,1019,1019,1012]} 1. e4 {[%emt 0:00:09]} e5 {[%emt 0:01:13]} 2. Nf3 {[%emt 0:00:12]} Nc6 {[%emt 0:00:06]} 3. Bb5 {[%emt 0:00:13]} a6 {[%emt 0:00:53]} 4. Ba4 {[%emt 0:00:07]} Bc5 {[%emt 0:00:37]} 5. c3 {[%emt 0:00:24][%cal Bc2c3,Bc3d4][%mdl 32]} Nge7 {[%emt 0:00:33]} 6. d4 {[%emt 0:00:45] C70: Ruy Lopez: 3...a6 4 Ba4, Norwegian and Delayed Schliemann.} exd4 {[%emt 0:00:40]} 7. cxd4 {[%emt 0:00:12]} Bb4+ {[%emt 0:00:26]} 8. Nc3 {[%emt 0:00:35] White is slightly better.} d5 {[%emt 0:02:04]} 9. e5 {[%emt 0:00:20]} Bg4 {[%emt 0:04:07]} 10. a3 {[%emt 0:09:15]} Ba5 {[%emt 0:01:38]} 11. Be3 {[%emt 0:02:06]} O-O {[%emt 0:06:46]} 12. Bc2 {[%emt 0:01:43][%cal Oc2h7] [#]} Bxc3+ $146 {[%emt 0:13:12]} ({Predecessor:} 12... Nf5 13. Qd3 g6 14. O-O-O Bb6 15. Bg5 Qd7 16. Bf6 Nce7 17. h3 Bxf3 18. Qxf3 c5 19. g4 Ng7 20. Bxg7 Kxg7 21. Qf6+ {1-0 Sukandar,I (2358)-Peng,X (2489) Biel HTO 56th 2023 (2)}) 13. bxc3 {[%emt 0:00:10][%cal Oc2h7]} Qd7 {[%emt 0:00:28]} 14. h3 {[%emt 0:19:00]} Bf5 {[%emt 0:01:03]} 15. O-O {[%emt 0:09:30]} Na5 {[%emt 0:20:34]} 16. Nh4 {[%emt 0:07:48] next Nxf5 is good for White.} Bxc2 {[%emt 0:00:41]} 17. Qxc2 {[%emt 0:00:06]} f5 {[%emt 0:00:33]} 18. exf6 {[%emt 0:02:49]} Rxf6 {[%emt 0:00:19]} 19. Bg5 {[%emt 0:01:42]} Re6 {[%emt 0:05:09]} (19... Rf7 $11 {keeps the balance.}) 20. f4 $1 $16 {[%emt 0:02:51][%cal Bf2f4,Bf4f5,Bf5f6][%mdl 32] Threatens to win with f5.} Rf8 {[%emt 0:04:12]} 21. Rae1 {[%emt 0:06:54]} ({Better is} 21. f5 $14 Re4 22. Qd3) 21... Nc4 {[%emt 0:01:56]} 22. Rxe6 {[%emt 0:00:22]} Qxe6 {[%emt 0:00:07]} 23. f5 {[%emt 0:00:07]} Qf7 {[%emt 0:03:53]} 24. f6 {[%emt 0:05:43]} Nd6 {[%emt 0:01:05]} 25. Rf3 {[%emt 0:03:04]} (25. fxe7 $2 Qxf1+ 26. Kh2 Rf2 $19) (25. Qd3 $5 {[%cal Rf6e7]}) 25... Ng6 {[%emt 0:05:03]} (25... Nec8 $1 $11 {remains equal.}) 26. Nf5 $1 {[%emt 0:01:12]} Nxf5 {[%emt 0:02:36]} 27. Qxf5 {[%emt 0:00:07]} (27. Rxf5 $6 Qe6 $11) 27... c6 {[%emt 0:01:54]} 28. h4 $36 {[%emt 0:03:11][%mdl 2048] Black must now prevent h5. White is on the roll. White is much more active.} gxf6 {[%emt 0:10:31] [#]} 29. Bh6 {[%emt 0:01:02] aiming for h5.} Re8 {[%emt 0:00:26]} 30. h5 {[%emt 0:00:50][%cal Of3g3] Rg3! would be deadly.} Ne7 $2 {[%emt 0:00:30][%mdl 8192] Black cannot hold the game after this.} (30... Re1+ $2 31. Kf2 Qe6 32. hxg6 $18 (32. Qxe6+ Rxe6 33. hxg6 hxg6 $16)) (30... Nf8 $16) 31. Rg3+ $18 {[%emt 0:02:37] Black is weak on the dark squares. White is clearly winning.} ({Less strong is} 31. Qxf6 Qxf6 32. Rxf6 Nc8 $16) 31... Kh8 {[%emt 0:00:10] [#]} 32. Qd7 {[%emt 0:00:15]} Qxh5 {[%emt 0:03:40]} 33. Bg7+ {[%emt 0:00:36]} Kg8 {[%emt 0:00:04]} 34. Bxf6+ {[%emt 0:00:23][%mdl 64] Discovered Attack} (34. Qxb7 $2 {is the wrong capture.} Ng6 35. Rh3 Qd1+ 36. Kh2 Re1 $19) 34... Kf7 {[%emt 0:00:50]} 35. Be5 {[%emt 0:07:51] Strongly threatening Rf3+.} Qd1+ {[%emt 0:07:03]} 36. Kh2 {[%emt 0:00:05] Threatening mate with Rg7+.} Qh5+ {[%emt 0:01:35]} 37. Rh3 {[%emt 0:00:14] Weighted Error Value: White=0.06 (flawless) /Black=0.28 (precise)} 1-0

[Event "XLIX Sevilla Open 2024"]
[Site "?"]
[Date "2024.01.15"]
[Round "4.3"]
[White "Basso, Pier Luigi"]
[Black "Starostits, Ilmars"]
[Result "1-0"]
[ECO "D85"]
[WhiteElo "2482"]
[BlackElo "2356"]
[Annotator "TA"]
[PlyCount "87"]
[EventDate "2024.01.12"]
[EventType "swiss"]
[SourceTitle "playchess.com"]
[Source "ChessBase"]
[SourceQuality "1"]
[TimeControl "5400+30"]

{[%evp 17,87,0,0,0,0,0,9,0,22,4,22,10,14,8,25,21,27,25,14,16,59,58,58,58,58,58,61,47,47,51,51,46,50,44,46,0,1,2,51,51,48,46,65,65,64,63,222,222,214,146,298,16,404,273,514,498,576,566,608,500,591,565,545,526,497,510,731,731,702,700,718,669]} 1. d4 {[%emt 0:10:46]} Nf6 {[%emt 0:00:10]} 2. c4 {[%emt 0:00:14]} g6 {[%emt 0:00:04]} 3. Nc3 {[%emt 0:00:09]} d5 {[%emt 0:00:06]} 4. Nf3 {[%emt 0:00:12]} Bg7 {[%emt 0:00:33]} 5. h3 {[%emt 0:00:25]} O-O {[%emt 0:01:42]} 6. cxd5 {[%emt 0:00:10]} Nxd5 {[%emt 0:00:06]} 7. e4 {[%emt 0:00:05]} Nxc3 {[%emt 0:02:03]} 8. bxc3 {[%emt 0:00:07]} c5 {[%emt 0:00:03]} 9. Be2 {[%emt 0:01:20]} b6 {[%emt 0:09:46]} 10. Be3 $1 {[%emt 0:03:04] The main line 10.Be3 scores better than 10.0-0. D85: Exchange Grünfeld: Unusual White 7th moves and lines with 7 Nf3.} Bb7 {[%emt 0:00:22]} 11. Qd3 {[%emt 0:00:24]} ({Much worse is} 11. dxc5 Bxc3+ 12. Bd2 Bxa1 13. Qxa1 Nd7 $15) 11... Ba6 {[%emt 0:02:00]} 12. Qd2 {[%emt 0:01:17] The position is equal.} Bxe2 {[%emt 0:00:21]} 13. Kxe2 {[%emt 0:03:57]} cxd4 {[%emt 0:01:52]} 14. cxd4 {[%emt 0:00:07]} Nc6 {[%emt 0:00:48]} 15. Rac1 {[%emt 0:01:07] [#]} Rc8 $146 {[%emt 0:01:01]} ({Predecessor:} 15... Qd7 16. Rhd1 Rac8 17. Kf1 Na5 {½-½ Wu,W (2570)-Ni,H (2534) CHN-chT Suzhou 2001 (5)}) 16. d5 {[%emt 0:08:22]} Ne5 {[%emt 0:02:58]} 17. Nxe5 {[%emt 0:02:55]} Bxe5 {[%emt 0:00:04]} 18. f4 {[%emt 0:00:32]} Bg7 {[%emt 0:00:15]} 19. Rxc8 {[%emt 0:07:50]} Qxc8 {[%emt 0:00:06]} 20. Rc1 {[%emt 0:00:09] Dodges Qc4+} Qd7 {[%emt 0:05:11]} 21. Qc2 {[%emt 0:08:32]} f5 {[%emt 0:01:10]} 22. Qc6 {[%emt 0:05:09]} Qxc6 {[%emt 0:02:25]} 23. Rxc6 {[%emt 0:03:16]} fxe4 $14 {[%emt 0:00:09][%mdl 4096] Endgame KRB-KRB} 24. Rc7 {[%emt 0:00:04][%csl LRa7,LRe7]} Rd8 {[%emt 0:00:14]} 25. Rxa7 {[%emt 0:00:57][%cal Bc7a7,Ba7a6,Ba6a8][%mdl 32]} Rxd5 {[%emt 0:00:08]} 26. Bxb6 {[%emt 0:00:28][%cal Oa2a4]} Rb5 {[%emt 0:02:59]} 27. Ra6 {[%emt 0:07:01]} Rb2+ {[%emt 0:01:36]} (27... Kf7 $11 {is superior.}) 28. Ke3 {[%emt 0:00:22]} Rxg2 {[%emt 0:00:04]} 29. a4 {[%emt 0:03:15][%cal Oa4a5]} Rg3+ {[%emt 0:00:14]} 30. Kxe4 {[%emt 0:00:08]} Rxh3 {[%emt 0:00:03]} 31. a5 {[%emt 0:01:06]} Ra3 $2 {[%emt 0:00:18] [#]} (31... Kf7 $14) 32. Ra8+ $1 $18 {[%emt 0:00:15][%mdl 1024] White has strong compensation.} Kf7 {[%emt 0:02:21]} 33. a6 {[%emt 0:00:30] a7 is the strong threat.} Ra4+ $2 {[%emt 0:01:16]} (33... h5 $16) 34. Kd3 $2 {[%emt 0:01:19]} (34. Kd5 $18) 34... Ra3+ $2 {[%emt 0:01:21][%mdl 8192]} (34... h5 $1 $11) 35. Kc4 {[%emt 0:00:31]} h5 $2 {[%emt 0:03:30]} (35... Ke6 36. a7 Kf5) 36. a7 {[%emt 0:00:09] White is clearly winning.} h4 {[%emt 0:00:03][%cal Og6g5]} 37. Rd8 {[%emt 0:00:49]} h3 {[%emt 0:00:04]} 38. Rd3 {[%emt 0:05:20]} (38. a8=B $2 Rxa8 39. Rd2 (39. Rxa8 $2 h2 $19) 39... Ra4+ 40. Kd3 Rxf4 $19) 38... h2 {[%emt 0:01:18] [#] Threatens to win with ...Ra4+.} 39. Rxa3 {[%emt 0:00:52]} h1=Q {[%emt 0:00:05]} 40. a8=Q {[%emt 0:00:06]} (40. a8=R $2 {too greedy.} Qf1+ 41. Kc5 Qxf4 $19) 40... Qf1+ {[%emt 0:08:39]} 41. Kc5 {[%emt 0:00:36] Qd5+ would kill now.} Bf8 {[%emt 0:00:06]} 42. Kc6 {[%emt 0:03:48]} Qxf4 {[%emt 0:04:00]} 43. Qa4 {[%emt 0:01:01]} Qf6+ {[%emt 0:00:50]} 44. Kb7 {[%emt 0:00:20] Weighted Error Value: White=0.13 (very precise) /Black=0.56} 1-0

[Event "XLIX Sevilla Open 2024"]
[Site "?"]
[Date "2024.01.15"]
[Round "4.5"]
[White "Nurkiewicz, Maciej"]
[Black "Kaasen, Tor Fredrik"]
[Result "1/2-1/2"]
[ECO "B60"]
[WhiteElo "2333"]
[BlackElo "2468"]
[Annotator "TA"]
[PlyCount "63"]
[EventDate "2024.01.12"]
[EventType "swiss"]
[SourceTitle "playchess.com"]
[Source "ChessBase"]
[SourceQuality "1"]
[TimeControl "5400+30"]

{[%evp 13,63,41,35,2,15,8,29,22,32,26,37,41,29,28,28,32,38,17,41,8,18,8,15,-22,-19,0,0,-16,-10,0,78,81,87,75,87,92,102,91,315,308,461,462,505,127,129,118,114,0,0,0,0,0]} 1. e4 {[%emt 0:00:07]} c5 {[%emt 0:01:08]} 2. Nf3 {[%emt 0:00:03]} d6 {[%emt 0:01:40]} 3. d4 {[%emt 0:00:06]} cxd4 {[%emt 0:00:19]} 4. Nxd4 {[%emt 0:00:06]} Nf6 {[%emt 0:00:36]} 5. Nc3 {[%emt 0:00:07]} Nc6 {[%emt 0:00:32]} 6. Bg5 {[%emt 0:00:33]} Bd7 {[%emt 0:01:35]} 7. Bxf6 {[%emt 0:01:46]} gxf6 {[%emt 0:00:30]} 8. Qd2 {[%emt 0:06:30] B60: Sicilian: Richter-Rauzer: Unusual Black 6th moves and 6...Bd7 without 7 Qd2.} h5 {[%emt 0:03:29]} 9. f4 {[%emt 0:11:33]} (9. Nf5 {looks sharper.} Qa5 10. Bb5 O-O-O 11. O-O) 9... Qb6 {[%emt 0:09:12][%csl LRb2,LRd4]} 10. Nb3 {[%emt 0:00:31] White has an edge.} e6 {[%emt 0:01:33] Dodges Nd5} 11. O-O-O {[%emt 0:00:16]} a6 {[%emt 0:02:52] [#]} 12. Kb1 $146 {[%emt 0:00:36]} ({Predecessor:} 12. Be2 O-O-O 13. Rhf1 Be7 14. Rf3 Rdg8 15. Bf1 Rg4 16. Qe1 Kb8 17. Kb1 h4 18. h3 {1-0 Guseinov,G (2659)-Melnikova,Y (2264) Dubai op 11th 2009 (1)}) 12... O-O-O {[%emt 0:01:14]} 13. Bc4 {[%emt 0:10:15]} Kb8 {[%emt 0:01:15]} 14. Rhf1 {[%emt 0:01:19]} Rc8 {[%emt 0:05:59]} 15. Rf3 {[%emt 0:03:26]} Be7 {[%emt 0:10:15]} 16. a3 {[%emt 0:03:12]} Na5 {[%emt 0:04:22]} 17. Nxa5 {[%emt 0:03:23]} Qxa5 {[%emt 0:00:24]} 18. Bb3 {[%emt 0:00:24][%cal Of4f5]} f5 {[%emt 0:01:48]} 19. exf5 {[%emt 0:11:13]} Qxf5 {[%emt 0:00:42]} 20. Ne2 {[%emt 0:00:15]} Rhg8 {[%emt 0:10:53]} 21. Nd4 {[%emt 0:08:26]} Qe4 {[%emt 0:01:47] [#]} (21... Qf6 $11 {keeps the balance.}) 22. f5 $1 $16 {[%emt 0:04:56]} d5 {[%emt 0:13:37]} (22... exf5 $2 23. Bxf7 Rgf8 24. Re3 $18 (24. Bxh5 Bf6 $16)) (22... Qe5 23. fxe6) 23. fxe6 {[%emt 0:03:23]} fxe6 {[%emt 0:00:43]} 24. Rf7 $1 {[%emt 0:06:56]} Rxg2 {[%emt 0:03:36]} 25. Qa5 {[%emt 0:00:14] Some like it hot} Qg4 $2 {[%emt 0:22:59] [#]} (25... Bd8 $16 {is a better defense.} 26. Qb4 Rc7) 26. Rd3 $1 $18 {[%emt 0:02:26]} ({Not} 26. Qe1 Bh4 27. Qe5+ Ka8 $14) 26... Bd8 {[%emt 0:00:00]} (26... Rxh2 $142 27. Qe1 (27. Rxe7 $2 {is the wrong capture.} Qg1+ 28. Ka2 Rh1 $19) 27... Bb5) 27. Qb4 {[%emt 0:00:39]} Bb5 {[%emt 0:00:00]} 28. Qd6+ {[%emt 0:00:22]} (28. a4 $18 {has better winning chances.} Rxh2 29. axb5 Rh1+ 30. Ka2) 28... Ka7 $16 {[%emt 0:00:00]} 29. Nxb5+ {[%emt 0:07:43]} axb5 {[%emt 0:00:00] [#]} 30. Qd7 {[%emt 0:00:27] White is more active.} (30. Rdf3 $1 $16 {aiming for Qd7.} Qe4 31. Qd7) 30... Rc7 $11 {[%emt 0:00:00]} 31. Qxd8 {[%emt 0:00:24]} Rxf7 {[%emt 0:00:00]} 32. Qa5+ {[%emt 0:00:13] Weighted Error Value: White=0.30/Black=0.35} 1/2-1/2

[Event "XLIX Sevilla Open 2024"]
[Site "?"]
[Date "2024.01.15"]
[Round "4.6"]
[White "Marin, Mihail"]
[Black "Butkiewicz, Lukasz"]
[Result "1-0"]
[ECO "A38"]
[WhiteElo "2449"]
[BlackElo "2338"]
[Annotator "TA"]
[PlyCount "85"]
[EventDate "2024.01.12"]
[EventType "swiss"]
[SourceTitle "playchess.com"]
[Source "ChessBase"]
[SourceQuality "1"]
[TimeControl "5400+30"]

{[%evp 15,85,0,28,13,14,0,18,0,42,49,52,47,45,54,36,45,46,31,67,38,50,29,61,52,59,54,60,60,60,58,61,45,44,36,37,37,33,42,41,30,74,51,66,61,64,56,69,72,59,68,83,59,81,23,23,29,61,42,50,27,228,112,732,721,723,669,12835,12835,12834,12834,2031,1374]} 1. Nf3 {[%emt 0:04:10]} Nf6 {[%emt 0:00:28]} 2. b3 {[%emt 0:00:09]} g6 {[%emt 0:01:48]} 3. Bb2 {[%emt 0:00:06]} Bg7 {[%emt 0:00:56]} 4. g3 {[%emt 0:00:06]} O-O {[%emt 0:01:13]} 5. Bg2 {[%emt 0:00:06]} c5 {[%emt 0:02:06]} 6. c4 {[%emt 0:00:20]} Nc6 {[%emt 0:01:47]} 7. O-O {[%emt 0:00:10]} d6 {[%emt 0:01:02]} 8. Nc3 {[%emt 0:01:11]} Bd7 {[%emt 0:02:29]} 9. d3 {[%emt 0:00:52] A38: Symmetrical English vs ...g6: 4 Bg2 Bg7 5 Nf3 Nf6.} a6 {[%emt 0:01:22]} 10. Qd2 {[%emt 0:00:14]} Rb8 {[%emt 0:02:25]} 11. Nd5 {[%emt 0:04:52] The position is equal.} Ne8 {[%emt 0:11:41]} 12. Bxg7 {[%emt 0:05:06] [#]} Nxg7 $146 {[%emt 0:00:44]} ({Predecessor:} 12... Kxg7 13. h4 e6 14. Nf4 h6 15. d4 cxd4 16. Nxd4 Qf6 17. Nc2 Ne5 18. Nd4 Nc6 {0-1 San Segundo Carrillo,P-Djurhuus,R Wch U20 Gausdal 1986 (9)}) 13. d4 {[%emt 0:03:06]} cxd4 {[%emt 0:04:14]} 14. Nxd4 {[%emt 0:02:33]} Nxd4 {[%emt 0:01:17]} 15. Qxd4 {[%emt 0:00:06]} Bc6 {[%emt 0:01:42]} 16. Rfd1 {[%emt 0:02:40]} Re8 {[%emt 0:07:09]} 17. Rd2 {[%emt 0:04:25] White is much more active. The black rooks are badly placed.} Ne6 {[%emt 0:03:41]} 18. Qb2 {[%emt 0:01:36]} Rc8 {[%emt 0:04:13]} 19. Rc1 {[%emt 0:08:06]} a5 {[%emt 0:08:56]} 20. Bh3 {[%emt 0:12:41]} Bd7 {[%emt 0:03:54]} 21. a3 {[%emt 0:02:33]} Nc5 {[%emt 0:03:40]} 22. Bxd7 {[%emt 0:00:11]} Nxd7 {[%emt 0:00:05][%cal Bc5d7,Bd7f8,Bf8e6][%mdl 32]} 23. h4 {[%emt 0:02:53][%cal Oh4h5]} h5 {[%emt 0:03:51]} 24. b4 {[%emt 0:03:15]} axb4 {[%emt 0:04:44]} 25. axb4 {[%emt 0:01:45]} Rc6 {[%emt 0:00:18]} 26. Qd4 {[%emt 0:01:24]} Qc8 {[%emt 0:03:38]} 27. Rc3 {[%emt 0:01:56]} Nf8 {[%emt 0:04:44]} 28. Kh2 {[%emt 0:08:36]} Ne6 {[%emt 0:04:08]} 29. Qe4 {[%emt 0:03:19][%cal Oc4c5]} b5 {[%emt 0:03:22][%cal Rc6c4]} 30. Rdc2 {[%emt 0:00:41]} Rxc4 {[%emt 0:00:05]} 31. Rxc4 {[%emt 0:00:13]} bxc4 {[%emt 0:00:02]} 32. Rxc4 {[%emt 0:00:33]} Qb8 {[%emt 0:00:39]} 33. Qd3 {[%emt 0:06:32]} Qb7 {[%emt 0:00:45] Repels Rc6} 34. g4 {[%emt 0:02:19]} (34. f4 $16) 34... hxg4 $11 {[%emt 0:02:27]} 35. Rxg4 {[%emt 0:03:33] Threatens to win with h5.} Ng7 {[%emt 0:00:33]} 36. b5 {[%emt 0:00:23] [#] Strongly threatening b6.} (36. Qf3 $5 {[%cal Rd5f6]} Qd7 37. e4 $14) 36... Rb8 {[%emt 0:03:46]} 37. b6 {[%emt 0:02:04] Ra4 would be deadly.} Kf8 $2 {[%emt 0:02:24]} (37... Nh5 $1 $11) 38. Ra4 {[%emt 0:04:01]} (38. Qd2 $18 {and White stays clearly on top.}) 38... e6 $2 {[%emt 0:02:38][%mdl 8192]} (38... Qc6 $16 39. Ra7 e6) 39. Nf6 $18 {[%emt 0:00:07] White is clearly winning.} Ne8 {[%emt 0:01:23]} 40. Ra7 {[%emt 0:03:01]} Nxf6 {[%emt 0:00:15]} 41. Qxd6+ {[%emt 0:01:35]} Kg7 {[%emt 0:00:06]} 42. Rxb7 {[%emt 0:00:05]} Rxb7 {[%emt 0:00:04] [#]} 43. Qc7 $3 {[%emt 0:08:26][%mdl 576] Promotion.   Weighted Error Value: White=0.16 (very precise) /Black=0.24 (precise)} 1-0